[Event "Early-Titled-Tuesday-Blitz-July-09-2024"]
[Site "Chess.com"]
[Date "2024.07.09"]
[Round "6"]
[White "Mops_2004"]
[Black "ShahMatKanal"]
[Result "0-1"]
[WhiteElo "2715"]
[BlackElo "2563"]
[TimeControl "180+1"]
[EndTime "9:10:02 PDT"]
[Termination "ShahMatKanal won by resignation"]

1. e4 {[%clk 0:03:00.9]} 1... c5 {[%clk 0:02:58.2]} 2. Nf3 {[%clk 0:03:00.5]}
2... d6 {[%clk 0:02:58.5]} 3. d4 {[%clk 0:03:00.6]} 3... cxd4 {[%clk 0:02:59.4]}
4. Nxd4 {[%clk 0:03:01]} 4... Nf6 {[%clk 0:02:59.7]} 5. Nc3 {[%clk 0:03:01.5]}
5... g6 {[%clk 0:03:00]} 6. h3 {[%clk 0:03:00.1]} 6... Bg7 {[%clk 0:02:57.1]} 7.
g3 {[%clk 0:02:59.5]} 7... O-O {[%clk 0:02:56.8]} 8. Bg2 {[%clk 0:02:59.6]} 8...
a6 {[%clk 0:02:52]} 9. O-O {[%clk 0:02:58.6]} 9... Qc7 {[%clk 0:02:50.3]} 10.
Nd5 {[%clk 0:02:54.7]} 10... Nxd5 {[%clk 0:02:46]} 11. exd5 {[%clk 0:02:54.9]}
11... Nd7 {[%clk 0:02:42.9]} 12. Re1 {[%clk 0:02:54.6]} 12... Nf6 {[%clk
0:02:40.2]} 13. a4 {[%clk 0:02:54.6]} 13... Re8 {[%clk 0:02:27.8]} 14. a5 {[%clk
0:02:53.5]} 14... e5 {[%clk 0:02:20.6]} 15. dxe6 {[%clk 0:02:50.7]} 15... fxe6
{[%clk 0:02:21.5]} 16. Ra3 {[%clk 0:01:58.6]} 16... Rb8 {[%clk 0:02:00.9]} 17.
b4 {[%clk 0:01:25.9]} 17... e5 {[%clk 0:01:52.7]} 18. Ne2 {[%clk 0:01:25.9]}
18... Be6 {[%clk 0:01:51.3]} 19. Nc3 {[%clk 0:01:26.1]} 19... Red8 {[%clk
0:01:40.7]} 20. Bg5 {[%clk 0:01:25.2]} 20... Qc4 {[%clk 0:01:32.2]} 21. Bxf6
{[%clk 0:01:12.5]} 21... Bxf6 {[%clk 0:01:33.1]} 22. Nd5 {[%clk 0:01:12.3]}
22... Bg7 {[%clk 0:01:24.3]} 23. Rc3 {[%clk 0:01:01.1]} 23... Qb5 {[%clk
0:01:22.8]} 24. Rc7 {[%clk 0:00:45.3]} 24... Kh8 {[%clk 0:01:16.1]} 25. c4
{[%clk 0:00:43]} 25... Qe8 {[%clk 0:01:15.5]} 26. Re7 {[%clk 0:00:36.6]} 26...
Qg8 {[%clk 0:01:15.5]} 27. Qd2 {[%clk 0:00:33.2]} 27... Bf7 {[%clk 0:01:11.5]}
28. h4 {[%clk 0:00:28.9]} 28... Re8 {[%clk 0:01:11]} 29. Qe3 {[%clk 0:00:14.6]}
29... Qf8 {[%clk 0:01:07.4]} 30. Rxe8 {[%clk 0:00:11.2]} 30... Qxe8 {[%clk
0:01:05.9]} 31. Qb6 {[%clk 0:00:09.7]} 31... Qd8 {[%clk 0:01:04.9]} 32. Qa7
{[%clk 0:00:08.8]} 32... Qc8 {[%clk 0:01:03.8]} 33. Rc1 {[%clk 0:00:06.6]} 33...
Bh6 {[%clk 0:01:02.6]} 34. Rc2 {[%clk 0:00:06.4]} 34... Bf8 {[%clk 0:01:01.9]}
35. Qe3 {[%clk 0:00:06.3]} 35... Qf5 {[%clk 0:00:53.8]} 36. Rc1 {[%clk
0:00:05.5]} 36... Rc8 {[%clk 0:00:52.4]} 37. Be4 {[%clk 0:00:05.5]} 37... Qh3
{[%clk 0:00:51.4]} 38. Nb6 {[%clk 0:00:05.3]} 38... Rc7 {[%clk 0:00:49.9]} 39.
Bg2 {[%clk 0:00:04.7]} 39... Qf5 {[%clk 0:00:48.4]} 40. Bd5 {[%clk 0:00:04.6]}
40... Be8 {[%clk 0:00:45.4]} 41. Qe4 {[%clk 0:00:05]} 41... Bh6 {[%clk
0:00:44.3]} 42. Rc2 {[%clk 0:00:04]} 42... Qxe4 {[%clk 0:00:35.4]} 43. Bxe4
{[%clk 0:00:04.2]} 43... Bf8 {[%clk 0:00:35]} 44. Kg2 {[%clk 0:00:03.8]} 44...
Kg7 {[%clk 0:00:34.2]} 45. Bd5 {[%clk 0:00:03.8]} 45... h5 {[%clk 0:00:34]} 46.
Re2 {[%clk 0:00:03.6]} 46... Be7 {[%clk 0:00:33.1]} 47. Kf3 {[%clk 0:00:03.9]}
47... Bd8 {[%clk 0:00:31.9]} 48. Ke4 {[%clk 0:00:04.1]} 48... Re7 {[%clk
0:00:31.9]} 49. Rc2 {[%clk 0:00:04]} 49... Bxb6 {[%clk 0:00:28.3]} 50. axb6
{[%clk 0:00:04]} 50... Bd7 {[%clk 0:00:28.8]} 51. Ke3 {[%clk 0:00:04.2]} 51...
Bf5 {[%clk 0:00:27.7]} 52. Rc1 {[%clk 0:00:04.7]} 52... Rd7 {[%clk 0:00:27.6]}
53. Ra1 {[%clk 0:00:03]} 53... Kf6 {[%clk 0:00:26.6]} 54. Ra5 {[%clk 0:00:03.6]}
54... g5 {[%clk 0:00:24.8]} 55. hxg5+ {[%clk 0:00:04.5]} 55... Kxg5 {[%clk
0:00:25.6]} 56. Ra1 {[%clk 0:00:05.2]} 56... Kf6 {[%clk 0:00:22.4]} 57. Rh1
{[%clk 0:00:05.1]} 57... Bg6 {[%clk 0:00:22.4]} 58. f4 {[%clk 0:00:04.9]} 58...
exf4+ {[%clk 0:00:22.3]} 59. Kxf4 {[%clk 0:00:04.6]} 59... Kg7 {[%clk
0:00:21.9]} 60. Kg5 {[%clk 0:00:03.8]} 60... Re7 {[%clk 0:00:21.9]} 61. Rf1
{[%clk 0:00:04.2]} 61... Re5+ {[%clk 0:00:21.8]} 62. Kh4 {[%clk 0:00:04.7]}
62... Be4 {[%clk 0:00:20.6]} 63. Re1 {[%clk 0:00:04]} 63... Bxd5 {[%clk
0:00:15.5]} 64. Rxe5 {[%clk 0:00:04.6]} 64... dxe5 {[%clk 0:00:16.1]} 65. cxd5
{[%clk 0:00:05.2]} 65... e4 {[%clk 0:00:12.8]} 66. g4 {[%clk 0:00:04.4]} 66...
e3 {[%clk 0:00:11.8]} 67. Kg3 {[%clk 0:00:04.3]} 67... hxg4 {[%clk 0:00:12.2]}
0-1

[Event "Early-Titled-Tuesday-Blitz-July-09-2024"]
[Site "Chess.com"]
[Date "2024.07.09"]
[Round "6"]
[White "GAO"]
[Black "Ganziitoo"]
[Result "0-1"]
[WhiteElo "2436"]
[BlackElo "2273"]
[TimeControl "180+1"]
[EndTime "9:10:02 PDT"]
[Termination "Ganziitoo won by checkmate"]

1. e4 {[%clk 0:02:49.2]} 1... d6 {[%clk 0:02:59.9]} 2. d4 {[%clk 0:02:48.7]}
2... Nf6 {[%clk 0:03:00.8]} 3. Nc3 {[%clk 0:02:48.3]} 3... Nbd7 {[%clk
0:03:01.1]} 4. Bc4 {[%clk 0:02:46.9]} 4... e5 {[%clk 0:03:00.7]} 5. Nf3 {[%clk
0:02:45.4]} 5... Be7 {[%clk 0:03:00.9]} 6. a4 {[%clk 0:02:44.7]} 6... O-O {[%clk
0:03:00.1]} 7. O-O {[%clk 0:02:45.2]} 7... c6 {[%clk 0:02:58.2]} 8. h3 {[%clk
0:02:45.4]} 8... Qc7 {[%clk 0:02:58.6]} 9. a5 {[%clk 0:02:45.6]} 9... Rb8 {[%clk
0:02:58.3]} 10. Re1 {[%clk 0:02:45.6]} 10... b5 {[%clk 0:02:58.7]} 11. a6 {[%clk
0:02:46.1]} 11... bxc4 {[%clk 0:02:58]} 12. Qe2 {[%clk 0:02:40.5]} 12... Nb6
{[%clk 0:02:45.9]} 13. Bg5 {[%clk 0:02:36.6]} 13... h6 {[%clk 0:02:45.2]} 14.
Bh4 {[%clk 0:02:36.3]} 14... Re8 {[%clk 0:02:45.7]} 15. Bg3 {[%clk 0:02:36]}
15... Bf8 {[%clk 0:02:45]} 16. Rad1 {[%clk 0:02:30.5]} 16... Bxa6 {[%clk
0:02:44.2]} 17. Nh4 {[%clk 0:02:25.3]} 17... Rbd8 {[%clk 0:02:35.4]} 18. Nf5
{[%clk 0:02:24.8]} 18... Bc8 {[%clk 0:02:35.6]} 19. Ne3 {[%clk 0:02:22.6]} 19...
Qb7 {[%clk 0:02:23.7]} 20. Bh4 {[%clk 0:02:18.1]} 20... Be7 {[%clk 0:02:20.8]}
21. Nxc4 {[%clk 0:02:15.3]} 21... Nxc4 {[%clk 0:02:20.5]} 22. Qxc4 {[%clk
0:02:16.2]} 22... Be6 {[%clk 0:02:18.4]} 23. Qd3 {[%clk 0:02:12.1]} 23... exd4
{[%clk 0:01:46.9]} 24. Qxd4 {[%clk 0:02:10.5]} 24... Qb6 {[%clk 0:01:47.4]} 25.
Qd3 {[%clk 0:02:07.4]} 25... d5 {[%clk 0:01:40.5]} 26. e5 {[%clk 0:02:05.8]}
26... Nd7 {[%clk 0:01:40.1]} 27. Bg3 {[%clk 0:02:04.9]} 27... Nc5 {[%clk
0:01:38.5]} 28. Qf3 {[%clk 0:02:01.2]} 28... d4 {[%clk 0:01:29.5]} 29. Ne2
{[%clk 0:01:56.3]} 29... Qxb2 {[%clk 0:01:17.4]} 30. Qxc6 {[%clk 0:01:35.2]}
30... Bd5 {[%clk 0:01:17.3]} 31. Qc7 {[%clk 0:01:34]} 31... Ne6 {[%clk
0:01:10.7]} 32. Qxa7 {[%clk 0:01:30.4]} 32... Bc5 {[%clk 0:00:47.8]} 33. Qa6
{[%clk 0:01:19.5]} 33... Qxc2 {[%clk 0:00:46.9]} 34. Rc1 {[%clk 0:01:18.2]}
34... Qe4 {[%clk 0:00:46.9]} 35. Nf4 {[%clk 0:01:16.6]} 35... Qf5 {[%clk
0:00:41.1]} 36. Nxe6 {[%clk 0:00:52.3]} 36... Bxe6 {[%clk 0:00:42]} 37. Rxc5
{[%clk 0:00:51]} 37... d3 {[%clk 0:00:42.5]} 38. Rd1 {[%clk 0:00:39.8]} 38...
Qe4 {[%clk 0:00:27.5]} 39. f3 {[%clk 0:00:18.1]} 39... Qe2 {[%clk 0:00:22.8]}
40. Rcc1 {[%clk 0:00:15]} 40... Qe3+ {[%clk 0:00:19]} 41. Bf2 {[%clk 0:00:14.5]}
41... Qxe5 {[%clk 0:00:19.6]} 42. Rxd3 {[%clk 0:00:13.7]} 42... Ra8 {[%clk
0:00:10]} 43. Qc6 {[%clk 0:00:10.2]} 43... Rac8 {[%clk 0:00:09.2]} 44. Rdc3
{[%clk 0:00:07.2]} 44... Rxc6 {[%clk 0:00:09.2]} 45. Rxc6 {[%clk 0:00:08.1]}
45... Bd5 {[%clk 0:00:07.8]} 46. R6c5 {[%clk 0:00:07.5]} 46... Qe6 {[%clk
0:00:08.3]} 47. Rc7 {[%clk 0:00:07.3]} 47... Re7 {[%clk 0:00:07]} 48. Rc8+
{[%clk 0:00:07.1]} 48... Kh7 {[%clk 0:00:07.6]} 49. R8c2 {[%clk 0:00:07.2]}
49... Rd7 {[%clk 0:00:07.3]} 50. Re1 {[%clk 0:00:05.7]} 50... Qg6 {[%clk
0:00:07.5]} 51. Rce2 {[%clk 0:00:05.2]} 51... Bxf3 {[%clk 0:00:07.7]} 52. Be3
{[%clk 0:00:04.2]} 52... Bxe2 {[%clk 0:00:07.4]} 53. Rxe2 {[%clk 0:00:04.8]}
53... Re7 {[%clk 0:00:07.8]} 54. Re1 {[%clk 0:00:04.7]} 54... Re6 {[%clk
0:00:08.3]} 55. Kf2 {[%clk 0:00:05.6]} 55... Qf5+ {[%clk 0:00:08.8]} 56. Ke2
{[%clk 0:00:05.4]} 56... Qe4 {[%clk 0:00:09.1]} 57. Kf2 {[%clk 0:00:06.3]} 57...
Qc2+ {[%clk 0:00:09.2]} 58. Re2 {[%clk 0:00:06.5]} 58... Qf5+ {[%clk 0:00:09.7]}
59. Ke1 {[%clk 0:00:06.5]} 59... h5 {[%clk 0:00:10.3]} 60. Kd2 {[%clk
0:00:05.9]} 60... Kg6 {[%clk 0:00:10.9]} 61. Ke1 {[%clk 0:00:06.8]} 61... Qd5
{[%clk 0:00:10.6]} 62. Kf2 {[%clk 0:00:07.3]} 62... Rf6+ {[%clk 0:00:11.2]} 63.
Kg1 {[%clk 0:00:07.5]} 63... Rc6 {[%clk 0:00:11.8]} 64. Kf2 {[%clk 0:00:08.4]}
64... Qd3 {[%clk 0:00:12.2]} 65. Rd2 {[%clk 0:00:08.4]} 65... Rf6+ {[%clk
0:00:11.2]} 66. Kg1 {[%clk 0:00:03.3]} 66... Qxe3+ {[%clk 0:00:11.4]} 67. Rf2
{[%clk 0:00:03.9]} 67... Qxf2+ {[%clk 0:00:11.4]} 68. Kh1 {[%clk 0:00:04.8]}
68... Qe1+ {[%clk 0:00:09.2]} 69. Kh2 {[%clk 0:00:05.1]} 69... Qe5+ {[%clk
0:00:09.7]} 70. Kh1 {[%clk 0:00:05.5]} 70... Rf1# {[%clk 0:00:10]} 0-1

[Event "Early-Titled-Tuesday-Blitz-July-09-2024"]
[Site "Chess.com"]
[Date "2024.07.09"]
[Round "6"]
[White "BobbyFischer1508"]
[Black "rhungaski"]
[Result "0-1"]
[WhiteElo "2433"]
[BlackElo "2648"]
[TimeControl "180+1"]
[EndTime "9:10:07 PDT"]
[Termination "rhungaski won on time"]

1. b3 {[%clk 0:02:55]} 1... Nf6 {[%clk 0:02:58.1]} 2. Bb2 {[%clk 0:02:54.5]}
2... g6 {[%clk 0:02:58.7]} 3. Bxf6 {[%clk 0:02:54.2]} 3... exf6 {[%clk
0:02:59.6]} 4. c4 {[%clk 0:02:53.7]} 4... Bg7 {[%clk 0:02:59.5]} 5. Nc3 {[%clk
0:02:53.2]} 5... f5 {[%clk 0:02:59.8]} 6. e3 {[%clk 0:02:53.4]} 6... O-O {[%clk
0:02:59.7]} 7. Nge2 {[%clk 0:02:53.4]} 7... d6 {[%clk 0:02:57.5]} 8. g3 {[%clk
0:02:53.2]} 8... c6 {[%clk 0:02:54.9]} 9. Bg2 {[%clk 0:02:53.3]} 9... Re8 {[%clk
0:02:55.4]} 10. O-O {[%clk 0:02:53.3]} 10... Nd7 {[%clk 0:02:55.7]} 11. Rb1
{[%clk 0:02:53.6]} 11... h5 {[%clk 0:02:39.3]} 12. b4 {[%clk 0:02:53]} 12... h4
{[%clk 0:02:29.6]} 13. b5 {[%clk 0:02:52.1]} 13... Ne5 {[%clk 0:02:26.9]} 14.
bxc6 {[%clk 0:02:47.5]} 14... bxc6 {[%clk 0:02:27.1]} 15. d4 {[%clk 0:02:47.5]}
15... Nxc4 {[%clk 0:02:21.5]} 16. Bxc6 {[%clk 0:02:46.8]} 16... Bd7 {[%clk
0:02:22.1]} 17. Bg2 {[%clk 0:02:46.3]} 17... hxg3 {[%clk 0:02:16.9]} 18. hxg3
{[%clk 0:02:45.6]} 18... Rb8 {[%clk 0:02:13.6]} 19. Qd3 {[%clk 0:02:40.2]} 19...
Nb6 {[%clk 0:02:00.1]} 20. Nf4 {[%clk 0:02:37.9]} 20... Qg5 {[%clk 0:01:47.1]}
21. Nfd5 {[%clk 0:02:32]} 21... Rec8 {[%clk 0:01:29.4]} 22. Nxb6 {[%clk
0:02:29.9]} 22... axb6 {[%clk 0:01:30.3]} 23. Nd5 {[%clk 0:02:25.9]} 23... Qd8
{[%clk 0:01:30.8]} 24. Rfc1 {[%clk 0:02:17.1]} 24... b5 {[%clk 0:01:29.4]} 25.
a3 {[%clk 0:02:13.2]} 25... Rxc1+ {[%clk 0:00:31.6]} 26. Rxc1 {[%clk 0:02:12.2]}
26... Be6 {[%clk 0:00:32.5]} 27. Nb4 {[%clk 0:02:03]} 27... Bc4 {[%clk
0:00:32.2]} 28. Qd1 {[%clk 0:02:02.4]} 28... Rc8 {[%clk 0:00:25.8]} 29. Bd5
{[%clk 0:01:54.5]} 29... Qa5 {[%clk 0:00:19.9]} 30. Rc3 {[%clk 0:01:49.3]} 30...
Kf8 {[%clk 0:00:18]} 31. Qc1 {[%clk 0:01:48.2]} 31... Qc7 {[%clk 0:00:17.4]} 32.
Bxc4 {[%clk 0:01:07.1]} 32... bxc4 {[%clk 0:00:17.2]} 33. Qd1 {[%clk 0:00:58.8]}
33... Bf6 {[%clk 0:00:16.4]} 34. Qf3 {[%clk 0:00:58.3]} 34... Bd8 {[%clk
0:00:16.1]} 35. Qd5 {[%clk 0:00:45.4]} 35... Kg7 {[%clk 0:00:16.2]} 36. Qb5
{[%clk 0:00:26.8]} 36... Bg5 {[%clk 0:00:15.8]} 37. Nd5 {[%clk 0:00:26.2]} 37...
Qc6 {[%clk 0:00:14.1]} 38. Qxc6 {[%clk 0:00:20.2]} 38... Rxc6 {[%clk 0:00:15]}
39. Nb4 {[%clk 0:00:15.7]} 39... Rc8 {[%clk 0:00:14.8]} 40. a4 {[%clk
0:00:12.1]} 40... Bd8 {[%clk 0:00:15.3]} 41. Rc2 {[%clk 0:00:07.8]} 41... Ba5
{[%clk 0:00:15.9]} 42. Nd5 {[%clk 0:00:08]} 42... c3 {[%clk 0:00:14.9]} 43. Kf1
{[%clk 0:00:08.4]} 43... Rc4 {[%clk 0:00:15.1]} 44. Ke2 {[%clk 0:00:07.6]} 44...
g5 {[%clk 0:00:14.7]} 45. Kd3 {[%clk 0:00:06.9]} 45... Rxa4 {[%clk 0:00:15]} 46.
Nxc3 {[%clk 0:00:07.1]} 46... Ra3 {[%clk 0:00:15.1]} 47. Kc4 {[%clk 0:00:07.2]}
47... Bxc3 {[%clk 0:00:12.3]} 48. Rxc3 {[%clk 0:00:07.1]} 48... Ra2 {[%clk
0:00:13.1]} 49. f4 {[%clk 0:00:07.4]} 49... g4 {[%clk 0:00:10.4]} 50. Kd5 {[%clk
0:00:07.6]} 50... Rg2 {[%clk 0:00:11]} 51. Kxd6 {[%clk 0:00:07.8]} 51... Rxg3
{[%clk 0:00:11.6]} 52. Ke5 {[%clk 0:00:07.9]} 52... Kg6 {[%clk 0:00:09.6]} 53.
Rc6+ {[%clk 0:00:06.8]} 53... Kg7 {[%clk 0:00:09]} 54. Kxf5 {[%clk 0:00:07.1]}
54... Rg1 {[%clk 0:00:09.4]} 55. e4 {[%clk 0:00:04.6]} 55... g3 {[%clk
0:00:09.5]} 56. d5 {[%clk 0:00:04.4]} 56... Rf1 {[%clk 0:00:05.7]} 57. Rc2
{[%clk 0:00:03.2]} 57... Rf2 {[%clk 0:00:04.9]} 58. Rc3 {[%clk 0:00:02.4]} 58...
g2 {[%clk 0:00:03.4]} 59. Rg3+ {[%clk 0:00:02.3]} 59... Kf8 {[%clk 0:00:04.1]}
60. d6 {[%clk 0:00:02.7]} 60... Ke8 {[%clk 0:00:03.1]} 61. e5 {[%clk 0:00:03.1]}
61... Kd7 {[%clk 0:00:03.5]} 62. Rg7 {[%clk 0:00:01.8]} 62... Kc6 {[%clk
0:00:02.5]} 0-1

[Event "Early-Titled-Tuesday-Blitz-July-09-2024"]
[Site "Chess.com"]
[Date "2024.07.09"]
[Round "6"]
[White "marvinguevara"]
[Black "C_K_G"]
[Result "0-1"]
[WhiteElo "2034"]
[BlackElo "2233"]
[TimeControl "180+1"]
[EndTime "9:10:14 PDT"]
[Termination "C_K_G won by checkmate"]

1. e4 {[%clk 0:03:00.9]} 1... c5 {[%clk 0:02:56.7]} 2. Nf3 {[%clk 0:03:00.6]}
2... d6 {[%clk 0:02:57.6]} 3. d4 {[%clk 0:03:00.9]} 3... cxd4 {[%clk 0:02:58.1]}
4. Nxd4 {[%clk 0:03:01.8]} 4... Nf6 {[%clk 0:02:58.2]} 5. Nc3 {[%clk 0:03:02.2]}
5... a6 {[%clk 0:02:59.1]} 6. Be2 {[%clk 0:03:02.5]} 6... e5 {[%clk 0:02:58.8]}
7. Nb3 {[%clk 0:03:02.9]} 7... Be6 {[%clk 0:02:58.6]} 8. f4 {[%clk 0:03:01.9]}
8... exf4 {[%clk 0:02:55.4]} 9. Bxf4 {[%clk 0:03:00.9]} 9... Nc6 {[%clk
0:02:52.8]} 10. O-O {[%clk 0:03:00.3]} 10... Be7 {[%clk 0:02:52.1]} 11. Kh1
{[%clk 0:02:59.8]} 11... O-O {[%clk 0:02:50.2]} 12. Nd4 {[%clk 0:02:59.4]} 12...
Ne5 {[%clk 0:02:44.5]} 13. Nf5 {[%clk 0:02:53]} 13... Bxf5 {[%clk 0:02:40.7]}
14. exf5 {[%clk 0:02:51.9]} 14... Rc8 {[%clk 0:02:39.5]} 15. Bf3 {[%clk
0:02:43.8]} 15... Qb6 {[%clk 0:02:33.9]} 16. Rb1 {[%clk 0:02:31.8]} 16... Nxf3
{[%clk 0:02:27.2]} 17. Qxf3 {[%clk 0:02:30.9]} 17... Rc4 {[%clk 0:01:52.4]} 18.
Rfe1 {[%clk 0:02:22.8]} 18... Rfc8 {[%clk 0:01:32.1]} 19. g4 {[%clk 0:01:54.9]}
19... h6 {[%clk 0:01:11.6]} 20. Kg2 {[%clk 0:01:28.5]} 20... Qb4 {[%clk
0:00:55.3]} 21. a3 {[%clk 0:00:50.6]} 21... Qb6 {[%clk 0:00:40.1]} 22. h3 {[%clk
0:00:42]} 22... Bf8 {[%clk 0:00:35.3]} 23. Be3 {[%clk 0:00:34.9]} 23... Qa5
{[%clk 0:00:25.5]} 24. Bf4 {[%clk 0:00:33.7]} 24... d5 {[%clk 0:00:23.4]} 25.
Bg3 {[%clk 0:00:30.2]} 25... Ne4 {[%clk 0:00:21.1]} 26. Nxe4 {[%clk 0:00:23.7]}
26... dxe4 {[%clk 0:00:20.5]} 27. Rxe4 {[%clk 0:00:23.1]} 27... Rxc2+ {[%clk
0:00:20.3]} 28. Re2 {[%clk 0:00:22.8]} 28... Rxe2+ {[%clk 0:00:19.1]} 29. Qxe2
{[%clk 0:00:23.1]} 29... Qd5+ {[%clk 0:00:17.8]} 30. Qf3 {[%clk 0:00:20.9]}
30... Rc2+ {[%clk 0:00:16.8]} 31. Bf2 {[%clk 0:00:18.7]} 31... Qa2 {[%clk
0:00:15.6]} 32. Re1 {[%clk 0:00:14.2]} 32... Bc5 {[%clk 0:00:15.1]} 33. Re2
{[%clk 0:00:11.5]} 33... Qxb2 {[%clk 0:00:14.1]} 34. Rxc2 {[%clk 0:00:10.5]}
34... Qxc2 {[%clk 0:00:14]} 35. Kf1 {[%clk 0:00:07.8]} 35... Qxf2+ {[%clk
0:00:12.5]} 36. Qxf2 {[%clk 0:00:07.8]} 36... Bxf2 {[%clk 0:00:13.4]} 37. Kxf2
{[%clk 0:00:08.7]} 37... Kf8 {[%clk 0:00:13.9]} 38. Ke3 {[%clk 0:00:09.3]} 38...
Ke7 {[%clk 0:00:13.4]} 39. Kd4 {[%clk 0:00:09.9]} 39... Kd6 {[%clk 0:00:13.8]}
40. a4 {[%clk 0:00:04.3]} 40... b5 {[%clk 0:00:11.8]} 41. axb5 {[%clk 0:00:03]}
41... axb5 {[%clk 0:00:11.8]} 42. h4 {[%clk 0:00:02.8]} 42... g6 {[%clk
0:00:08.4]} 43. fxg6 {[%clk 0:00:02.4]} 43... fxg6 {[%clk 0:00:08.4]} 44. h5
{[%clk 0:00:03]} 44... g5 {[%clk 0:00:08.4]} 45. Kc3 {[%clk 0:00:01.1]} 45...
Kc5 {[%clk 0:00:08.1]} 46. Kb3 {[%clk 0:00:01.4]} 46... b4 {[%clk 0:00:07.9]}
47. Kb2 {[%clk 0:00:02]} 47... Kc4 {[%clk 0:00:07.8]} 48. Kc2 {[%clk 0:00:02.6]}
48... Kd4 {[%clk 0:00:06.4]} 49. Kb3 {[%clk 0:00:03]} 49... Ke4 {[%clk
0:00:07.2]} 50. Kxb4 {[%clk 0:00:03.7]} 50... Kf4 {[%clk 0:00:08.1]} 51. Kc4
{[%clk 0:00:04.4]} 51... Kxg4 {[%clk 0:00:09]} 52. Kd4 {[%clk 0:00:05.2]} 52...
Kxh5 {[%clk 0:00:09.6]} 53. Ke4 {[%clk 0:00:05.4]} 53... Kh4 {[%clk 0:00:07.7]}
54. Ke3 {[%clk 0:00:06]} 54... Kg3 {[%clk 0:00:07.4]} 55. Ke2 {[%clk 0:00:06.1]}
55... g4 {[%clk 0:00:06.7]} 56. Kf1 {[%clk 0:00:06.6]} 56... h5 {[%clk
0:00:07.1]} 57. Kg1 {[%clk 0:00:07.2]} 57... h4 {[%clk 0:00:07.3]} 58. Kh1
{[%clk 0:00:07.9]} 58... h3 {[%clk 0:00:08.2]} 59. Kg1 {[%clk 0:00:08.5]} 59...
Kf3 {[%clk 0:00:08.2]} 60. Kh1 {[%clk 0:00:09]} 60... g3 {[%clk 0:00:08.6]} 61.
Kg1 {[%clk 0:00:09.5]} 61... g2 {[%clk 0:00:08.9]} 62. Kh2 {[%clk 0:00:09.2]}
62... Kf2 {[%clk 0:00:09.8]} 63. Kxh3 {[%clk 0:00:09.4]} 63... g1=Q {[%clk
0:00:10.7]} 64. Kh4 {[%clk 0:00:10]} 64... Qg7 {[%clk 0:00:10.2]} 65. Kh5 {[%clk
0:00:10.9]} 65... Kf3 {[%clk 0:00:09.8]} 66. Kh4 {[%clk 0:00:11.8]} 66... Qg4#
{[%clk 0:00:10]} 0-1